Cogmind - Beta 17 @@@ ROGUE MODE // 2026.07.27 @ 08:57:11 Player: JoshKwa Result: Destroyed by G-34 Mercenary with Small Laser Performance ------------- Evolutions (1) 500 Regions Visited (4) 800 Robots Destroyed (17) 85 Value Destroyed (301) 301 Prototype IDs (1) 20 Alien Tech Used (0) 0 Bonus (0) 0 TOTAL SCORE: 1706 Bonus ------- None Cogmind --------- Core Integrity 0/400 Matter 5/300 Energy 280/280 System Corruption 1% Temperature Cool (6) Movement Core (250) Ox4 Location -9/Mines Parts ------- > --- POWER (2) -------- Heavy Ion Engine > --- PROPULSION (2) --- (None) > --- UTILITY (3) ------ Small Storage Unit > --- WEAPON (2) ------- (None) > --- INVENTORY (8) ---- Assault Rifle Light Assault Rifle Grenade Launcher Peak State ------------ > --- POWER ------------ Ion Engine > --- PROPULSION ------- Compact Wheel Compact Wheel > --- UTILITY ---------- Small Storage Unit Targeting Computer > --- WEAPON ----------- Assault Rifle Rocket Launcher > --- INVENTORY -------- Structural Scanner Light Assault Rifle Grenade Launcher [Rating: 8] Favorites ----------- Power Heavy Ion Engine Engine Heavy Ion Engine Propulsion Compact Wheel Wheel Compact Wheel Utility Small Storage Unit Device Structural Scanner Storage Small Storage Unit Processor Targeting Computer Weapon EM Pulse Gun Energy Gun EM Pulse Gun Ballistic Gun Assault Rifle Launcher Rocket Launcher Build | -11 -10 -10 -9 -9 ------- Run | Yrd Mat Min Mat Min Slots Evolved 2 | . . . 2 . Power 1 | . . . 1 . Propulsion . | . . . . . Utility 1 | . . . 1 . Weapon . | . . . . . Parts Attached 14 | 5 6 1 1 1 Power 3 | 1 1 . . 1 Engine 3 | 1 1 . . 1 Core . | . . . . . Reactor . | . . . . . Propulsion 2 | 2 . . . . Treads . | . . . . . Leg . | . . . . . Wheel 2 | 2 . . . . Hover . | . . . . . Flight . | . . . . . Utility 4 | 1 2 . 1 . Device 1 | . . . 1 . Storage 1 | 1 . . . . Processor 2 | . 2 . . . Hackware . | . . . . . Protection . | . . . . . Artifact . | . . . . . Weapon 5 | 1 3 1 . . Energy Gun 1 | 1 . . . . Energy Cannon . | . . . . . Ballistic Gun 2 | . 2 . . . Ballistic Cannon . | . . . . . Launcher 2 | . 1 1 . . Special Weapon . | . . . . . Impact Weapon . | . . . . . Slashing Weapon . | . . . . . Piercing Weapon . | . . . . . Special Melee Weapon . | . . . . . Unidentified Prototypes 1 | . . . . 1 Parts Lost 5 | . . 2 2 1 Power 1 | . . . 1 . Propulsion 2 | . . 1 1 . Utility 2 | . . 1 . 1 Weapon . | . . . . . Highest Loss Streak 2 | . . 2 2 1 To Critical Strikes . | . . . . . Average Backups 2 | 1 2 2 3 3 Power . | . . . . . Propulsion . | . . . . . Utility . | . . 1 . . Weapon 2 | . 1 1 2 3 Tool/Special . | . . . . . Unused Backups . | . . . . . Power . | . . . . . Propulsion . | . . . . . Utility . | . . . . . Weapon . | . . . . . Tool/Special . | . . . . . Average Slot Usage (%) 53 | . 93 90 49 32 Engine 11 | . 14 14 8 11 Wheel 9 | . 28 23 8 . Device 7 | . . . 11 10 Storage 11 | . 14 14 11 11 Processor 2 | . 10 9 . . Energy Gun 2 | . 8 . . . Ballistic Gun 4 | . 10 18 2 . Launcher 3 | . 7 9 6 . Peak Build Rating 8 | 5 7 8 7 5 Average Rating 5 | 3 6 6 4 4 On Entrance 4 | . 5 7 6 2 Avg Prop Armor Cover (%) . | . . . . . Naked Turns . | . . . . . Heaviest Build 17 | 12 15 16 17 14 Greatest Support 32 | 32 32 32 16 3 Greatest Overweight (x) 4 | . . . 1 4 Average Overweight (x) 1 | . . . . 4 Largest Inventory Capacity 8 | 8 8 8 8 8 Average Capacity 7 | 5 8 8 8 8 Most Carried 4 | 4 4 3 4 3 Average Carried 2 | 1 2 2 3 3 Final Capacity 8 | 8 8 8 8 8 Final Carried 4 | 3 2 3 4 3 Class Distribution -------------------- 100% | Mutant Dominant Class ---------------- Mutant | -10/Materials Mutant | -10/Mines Mutant | -9/Materials Mutant | -9/Mines Resources | -11 -10 -10 -9 -9 ----------- Run | Yrd Mat Min Mat Min Matter Collected 261 | 209 39 13 . . Remotely . | . . . . . Salvage Created 167 | . 138 29 . . Parts 29 | . 23 6 . . Haulers Intercepted . | . . . . . Recyclers Shooed 1 | . . 1 . . Parts Field Recycled . | . . . . . Retrieved Matter . | . . . . . Parts Self-Destructed . | . . . . . Prevented . | . . . . . Parts Restored . | . . . . . Kills | -11 -10 -10 -9 -9 ------- Run | Yrd Mat Min Mat Min Combat Hostiles Destroyed 14 | . 9 5 . . Guns 3 | . 3 . . . AOE 11 | . 6 5 . . Classes Destroyed 5 | . 5 . . . Worker 1 | . 1 . . . Builder 1 | . 1 . . . Operator 1 | . 1 . . . Swarmer 10 | . 7 3 . . Grunt 4 | . 2 2 . . Best Kill Streak 10 | . 10 5 . . Combat Bots Only 8 | . 8 5 . . Max Kills in Single Turn 3 | . 3 2 . . Gunslinging . | . . . . . Exploded 2 | . 2 2 . . Melee . | . . . . . Uniques/NPCs Destroyed . | . . . . . Combat | -11 -10 -10 -9 -9 -------- Run | Yrd Mat Min Mat Min Hostile Shots Fired 131 | . 28 12 70 21 Missed 44 | . 12 4 22 6 Hits 87 | . 16 8 48 15 Melee 1 | . . . 1 . Projectile 86 | . 16 8 47 15 Critical Strikes 2 | . . . 1 1 Damage Taken 925 | . 129 121 456 219 Core 458 | . 9 43 270 136 Absorbed by Shields . | . . . . . Core Remaining (%) 89 | 100 . 79 . . Volleys Fired 26 | . 14 7 5 . Largest 2 | . 2 2 2 . Hottest 70 | . 70 53 53 . Shots Fired 47 | . 24 14 9 . Gun 29 | . 18 7 4 . Cannon . | . . . . . Launcher 18 | . 6 7 5 . Special . | . . . . . Kinetic 19 | . 8 7 4 . Thermal . | . . . . . Explosive 18 | . 6 7 5 . Electromagnetic 10 | . 10 . . . Robot Hit Streak 3 | . 2 3 1 . Robot Miss Streak 6 | . 6 1 2 . Penetration Max . | . . . . . Secondary Targets . | . . . . . Shots Hit Robots 15 | . 8 5 2 . Core Hits 28 | . 15 10 3 . Critical Kills . | . . . . . Critical Parts Destroyed . | . . . . . Critical Strikes . | . . . . . Melee Attacks . | . . . . . Impact . | . . . . . Slashing . | . . . . . Piercing . | . . . . . Sneak Attacks . | . . . . . Combat Hostiles . | . . . . . Follow-up Attacks . | . . . . . Damage Inflicted 1287 | . 544 530 213 . Guns 154 | . 91 52 11 . Cannons . | . . . . . Explosions 1124 | . 453 478 193 . Melee . | . . . . . Ramming 9 | . . . 9 . Kinetic 87 | . 24 52 11 . Thermal . | . . . . . Explosive 1124 | . 453 478 193 . Electromagnetic 67 | . 67 . . . Impact . | . . . . . Slashing . | . . . . . Piercing . | . . . . . Highest Corruption 1 | . . . 1 1 Average Corruption 1 | . . . 1 1 Corruption Purged . | . . . . . Corruption Blocked . | . . . . . Effects 1 | . . . . 1 Matter Fused 1 | . . . . 1 Overload Shots . | . . . . . Overflow Damage 81 | . 15 42 24 . Projectiles . | . . . . . Explosions 81 | . 15 42 24 . Melee . | . . . . . Knockbacks . | . . . . . Impact . | . . . . . Kinetic . | . . . . . Secondary . | . . . . . Self-Inflicted Damage 36 | . . 32 4 . Shots 1 | . . 1 . . Rammed 3 | . . . 3 . Targets Rammed 3 | . . . 3 . Kicked . | . . . . . Crushed . | . . . . . Highest Temperature 27 | . 21 27 . 5 Average Temperature 10 | . 8 16 . 5 Received Heat Transfer 285 | . 12 45 90 138 Siege Activations . | . . . . . Martial Activations . | . . . . . Shielding Activations . | . . . . . Robots Disrupted . | . . . . . Combat Hostiles . | . . . . . Robots Corrupted . | . . . . . Combat Hostiles . | . . . . . Parts Fried . | . . . . . Impact Corruptions . | . . . . . Robots Melted . | . . . . . Combat Hostiles . | . . . . . Parts Melted . | . . . . . Heat Transferred . | . . . . . Parts Sabotaged . | . . . . . Parts Stolen . | . . . . . Parts Stripped . | . . . . . Power Chain Reactions . | . . . . . Alert | -11 -10 -10 -9 -9 ------- Run | Yrd Mat Min Mat Min Maximum Alert Level 1 | . 1 1 . . Low Security (%) 85 | 100 44 69 100 100 Level 1 14 | . 55 30 . . Level 2 . | . . . . . Level 3 . | . . . . . Level 4 . | . . . . . Level 5 . | . . . . . High Security . | . . . . . Max Security . | . . . . . Peak Influence 268 | . 268 236 115 36 Initial 100 | . . 100 91 36 Average 58 | . 146 167 89 3 Influence Increases 603 | . 333 176 94 . Destroy 0b10 Robot/C 280 | . 180 100 . . Destroy 0b10 Robot/NC 15 | . 15 . . . Destroy Leader 40 | . 20 20 . . Disable Machine 45 | . 30 15 . . Destroy Structure 133 | . 58 41 34 . Lose Combat Pursuer 90 | . 30 . 60 . Influence Decreases 603 | . 75 198 235 95 Entered New Map 362 | . . 158 145 59 Time Decay 201 | . 75 20 70 36 Lost Part 40 | . . 20 20 . Squads Dispatched 1 | . . . 1 . Investigation . | . . . . . Extermination . | . . . . . Reinforcement 1 | . . . 1 . Assault . | . . . . . Garrison . | . . . . . Intercept . | . . . . . Searches Triggered . | . . . . . Construction Impeded . | . . . . . Haulers Reinforced . | . . . . . Active Scanning Responses . | . . . . . Cargo Convoy Interrupts . | . . . . . Stealth | -11 -10 -10 -9 -9 --------- Run | Yrd Mat Min Mat Min Distress Signals 2 | . 2 . . . Communications Jammed . | . . . . . Distress Signals . | . . . . . Times Spotted 34 | . 14 5 12 3 Peak Tracking Total 11 | . 5 3 11 3 Tactical Retreats 3 | . 1 . 2 . Traps | -11 -10 -10 -9 -9 ------- Run | Yrd Mat Min Mat Min Traps Triggered . | . . . . . Indirectly . | . . . . . Trap Hack Attempts . | . . . . . Triggered . | . . . . . Disarmed . | . . . . . Reprogrammed . | . . . . . Reused . | . . . . . Traps Extracted . | . . . . . Installed . | . . . . . Triggered . | . . . . . Machines | -11 -10 -10 -9 -9 ---------- Run | Yrd Mat Min Mat Min Machines Disabled 4 | . 3 1 . . Max in Single Turn 3 | . 3 1 . . Machines Repaired . | . . . . . Machines Dismantled . | . . . . . Machines Sabotaged . | . . . . . Overloaded Fab Kills . | . . . . . Hacking | -11 -10 -10 -9 -9 --------- Run | Yrd Mat Min Mat Min Machines Accessed 2 | . 2 . . . Terminals 1 | . 1 . . . Fabricators . | . . . . . Repair Stations . | . . . . . Recycling Units 1 | . 1 . . . Scanalyzers . | . . . . . Garrison Access . | . . . . . Total Hacks 5 | . 5 . . . Successful 3 | . 3 . . . Failed 2 | . 2 . . . Catastrophic . | . . . . . Database Lockouts . | . . . . . Manual . | . . . . . Terminals 2 | . 2 . . . Fabricators . | . . . . . Repair Stations . | . . . . . Recycling Units 3 | . 3 . . . Scanalyzers . | . . . . . Garrison Access . | . . . . . Terminal Hacks 1 | . 1 . . . Alert Level 1 | . 1 . . . Fabricator Hacks . | . . . . . Repair Station Hacks . | . . . . . Recycling Unit Hacks 2 | . 2 . . . Report Inventory 1 | . 1 . . . Retrieve Components 1 | . 1 . . . Scanalyzer . | . . . . . Garrison Access Hacks . | . . . . . Unauthorized Hacks . | . . . . . Terminals . | . . . . . Fabricators . | . . . . . Repair Stations . | . . . . . Recycling Units . | . . . . . Scanalyzers . | . . . . . Garrison Access . | . . . . . Data Cores Recovered 1 | . 1 . . . Used . | . . . . . Hacking Detections 2 | . 2 . . . Full Trace Events . | . . . . . Feedback Events . | . . . . . Feedback Blocked . | . . . . . Robot Schematics Acquired . | . . . . . Robots Built . | . . . . . Authchips . | . . . . . Time . | . . . . . Total Robot Build Rating . | . . . . . Part Schematics Acquired . | . . . . . Parts Built . | . . . . . Authchips . | . . . . . Time . | . . . . . Total Part Build Rating . | . . . . . Part Studies Acquired . | . . . . . Parts Repaired . | . . . . . Time . | . . . . . Parts Recycled . | . . . . . Recycled Matter . | . . . . . Retrieved Matter . | . . . . . Retrieved Components 2 | . 2 . . . Parts Scanalyzed . | . . . . . Part Schematics Acquired . | . . . . . Parts Damaged . | . . . . . Bothacking | -11 -10 -10 -9 -9 ------------ Run | Yrd Mat Min Mat Min Used RIF Installer . | . . . . . Robots Hacked . | . . . . . Non-combat . | . . . . . Combat . | . . . . . Robot Hacks Applied . | . . . . . Relay Couplers Released . | . . . . . Fabnet Peak Effective % . | . . . . . Robots Rewired . | . . . . . Allies Hacked . | . . . . . Hacks Repelled . | . . . . . Allies | -11 -10 -10 -9 -9 -------- Run | Yrd Mat Min Mat Min Total Allies . | . . . . . Largest Group . | . . . . . Highest-Rated Group . | . . . . . Highest-Rated Ally . | . . . . . Total Orders . | . . . . . Ally Attacks . | . . . . . Total Damage . | . . . . . Kills . | . . . . . Allies Corrupted . | . . . . . Allies Melted . | . . . . . Intel | -11 -10 -10 -9 -9 ------- Run | Yrd Mat Min Mat Min Active Infowar (turns) 588 | . . . 149 439 Structural 588 | . . . 149 439 Robot Analysis Total . | . . . . . Derelict Logs Recovered . | . . . . . Drone Launches . | . . . . . Drone Recoveries . | . . . . . Exploration | -11 -10 -10 -9 -9 ------------- Run | Yrd Mat Min Mat Min Turns Passed 929 | 63 205 56 149 456 Spaces Moved 554 | 56 154 33 129 182 Core 223 | 12 . . 29 182 Treads . | . . . . . Legs . | . . . . . Wheels 331 | 44 154 33 100 . Hover . | . . . . . Flight . | . . . . . Fastest Speed 50 | 50 100 100 100 250 Average Speed 148 | 89 100 100 101 250 Slowest Speed 250 | 100 100 100 115 250 Overloaded Moves . | . . . . . Propulsion Burnouts . | . . . . . Robots Hopped . | . . . . . Potential Cave-ins . | . . . . . Cave-ins Triggered . | . . . . . Exploration Rate (%) 24 | 3 42 20 18 39 Regions Visited 4 Branch Regions 2 Pre-discovered Areas . | . . . . . Known Exits Taken . | . . . . . Unknown Exits Taken 4 | 1 1 1 1 . Scrap Searched . | . . . . . Spaces Dug . | . . . . . Terrain Destroyed 169 | . 70 62 37 . Melee . | . . . . . Projectile . | . . . . . AOE 169 | . 70 62 37 . Terrain Rammed . | . . . . . Walls Destroyed . | . . . . . Machines Disabled . | . . . . . Actions | -11 -10 -10 -9 -9 --------- Run | Yrd Mat Min Mat Min Total 613 | 68 182 41 139 183 Wait 1 | . 1 . . . Move 550 | 55 153 32 128 182 Hop . | . . . . . Pick Up 14 | 8 4 1 1 . Fast Attach . | . . . . . Attach 11 | 5 4 . 1 1 Detach 3 | . 2 . 1 . Swap 3 | . 2 1 . . Drop 2 | . 2 . . . Fire 26 | . 14 7 5 . Melee . | . . . . . Ram 3 | . . . 3 . Kick . | . . . . . Crush . | . . . . . Escape Stasis . | . . . . . Rewire . | . . . . . Trap . | . . . . . Miscellaneous . | . . . . . Route ------- -11/Scrapyard -10/Materials -10/Mines -9/Materials -9/Mines History --------- Turn | Location | Event 4 | -11/Scrapyard | Discovered new exit (range 16) 64 | -11/Scrapyard | Entered Materials 135 | -10/Materials | Discovered new exit (range 14) 186 | -10/Materials | Destroyed 8 combat bots 269 | -10/Materials | Entered Mines 276 | -10/Mines | Received a Rocket Launcher from a helpful Derelict 301 | -10/Mines | Discovered new exit (range 11) 308 | -10/Mines | Build established: Mutant 325 | -10/Mines | Entered Materials 325 | -9/Materials | Evolved 2 slots: Power x1, Utility x1 449 | -9/Materials | Core integrity fell below 50% 470 | -9/Materials | Discovered new exit (range 5) 474 | -9/Materials | Entered Mines 496 | -9/Mines | Assembled infested the area 924 | -9/Mines | Core integrity fell below 20% 930 | -9/Mines | Destroyed by G-34 Mercenary with Small Laser Last Messages --------------- 00439_ Slammed into S-10 Pest. 00441_ Ion Engine destroyed. 00441_ Slammed into S-10 Pest. 00441_ Destabilizing: System corrupted (+1). 00442_ K-01 Serf cleans the Fusion Modulator. 00442_ Slammed into S-10 Pest. 00446_ Com. Wheel destroyed. 00446_ K-01 Serf cleans the Fusion Modulator. 00469_ K-01 Serf collects debris. 00470_ EXIT=FOUND LOCATION=UNKNOWN GOAL=ESCAPE Something is scanning the area. 00474_ Identified Hvy. Ion Engine. 00496_ ALERT: Infestation in the mines, dispatching Demolisher response squad. 00607_ T-07 Excavator is excavating. 00787_ System corrupted: Matter fused (-7). 00913_ Structural Scanner destroyed. 00913_ Critical hit (Burn: +37). Map ----- +----------------------------------------------------+ | ?????????????????????????????????????????????????? | | ?????????????????????????????????????????????????? | | ?????????????????????????????????????????????????? | | ?????????###?????????????????????????????????????? | | ?????????## ?????????????????????????????????????? | | ????????### ?????????????????????????????????????? | | ?????###### ???????????????????###????????????? | | ????###### ???????????????????###????????????? | | ????### ??????????????????? ##????????????? | | ????## #####?????????????? ##????????????? | | ????## ######???????????## #####?????????? | | ????### ###??#####????## #### ?????????? | | ?????### """ ##?########### ?????????? | | ???????## """ ##?### ####### ##????????????? | | ???????## """ ##### ##????????????? | | ???????## ##### ####??????????? | | ???????### #####?????????? | | ???????###### ###?????????? | | ############## ####### ##?????????? | | ############### ######### # ##?????????? | | ###### ## ##?????????? | | """" """" """" """" ##?### ## ##?????????? | | """" """" """" """" ##??## ## ##?????????? | | """" """" """" """" ###### ### ##?????????? | | t g ###### #### ##?????????? | | """" """" """" """"g @ #### ###?????????? | | """" """" """" """" g #### ####?????????? | | """" """" """" """" ############ ####??????????? | | ############ ###???????????? | | #######################???####### ##????????????? | | #######################???## ##????????????? | | ?????????????????????????### ##????????????? | | ???????????????############# ### ###????????????? | | ??????????????############# ### ###????????????? | | ??????????????### ## ## ### ##?????????????? | | ??????????????## ## ###????????????? | | ??????????????## ###????????????? | | ??????????????## ##????????????? | | ??????????????## ## ##????????????? | | ?????######???## #### ## ###????????????? | | ????########?### ######### #####????????????? | | ????### ###### ################?????????????? | | ????## #### ##?????###### ???????????????? | | ????## ###??????????????????????????? | | ????### ####?????????????????????????? | | ?????### """ #####???????????????????????? | | ?????#### """ #####??????????????????????? | | ??????### """ ###??????????????????????? | | ???????## ###?????????????????????? | | ??? ##### ## ###????????????????????? | +----------------------------------------------------+ Best States ------------- Heat Dissipation 28 Energy Generation 14 Energy Capacity 280 Matter Stores 261 Matter Capacity 300 Sight Range 16 Terrain Scan Density 10 Evasion (%) 50 Targeting Accuracy 5 Item Schematics ----------------- None Robot Schematics ------------------ None Fabricated ------------ Nothing Repaired ---------- Nothing Studied --------- None Alien Tech Used ----------------- None Achievements -------------- Ghost 'Em Challenges ------------ None Game ------ Seed RestorationLayeredChip Manual? 0 Play Time 00:09:39 Cumulative 17.9 hours Start 2026.07.27 @ 08:45:56 End 2026.07.27 @ 08:57:11 Sessions 1 Manual Loads 0 Difficulty Rogue Special Mode None Game No. 59 Rogue 59 Adventurer 0 Explorer 0 Win Type - Total 0 Types 0/0/0/0/0/0/0/0/0/0 Lore% 9 Gallery% 19 Achievement% 12 Wizard Run 0 Options --------- Layout 1 ASCII 0 Keyboard 0 Movement Numpad Keybinds 0 Fullscreen 1 Font 24/Smallcaps Map View 50x35 Zoom Use 0% Tactical HUD 1 Map Filters NONE Filters NONE Steam 1 RUN: dd902ce2-029d-4f05-ad6e-c4252543d2c3